bitfinex/quotes_BTCUSD_20220204
["timestamp","ask_amount","ask_price","bid_price","bid_amount"]
[1643962868580,0.065777,38010.0,38009.0,0.05]
[1643962870680,0.065777,38010.0,38007.0,0.00021083]
[1643962870879,0.065777,38010.0,38009.0,0.05]
[1643962871587,0.00105364,38011.0,38009.0,0.29212928]
[1643962871852,0.00105364,38011.0,38010.0,1.64472928]
[1643962872049,0.15192603,38019.0,38010.0,1.64494011]
[1643962872249,0.15192603,38019.0,38018.0,0.75]
[1643962872450,0.02041003,38019.0,38018.0,0.05021083]
[1643962872650,0.02041003,38019.0,38018.0,0.20021083]
[1643962873250,0.02041003,38019.0,38018.0,1.55021083]
[1643962873450,0.02041003,38019.0,38018.0,1.60281083]
[1643962873649,0.00105351,38020.0,38018.0,1.60281083]
[1643962873851,0.00105351,38020.0,38019.0,1.63915354]
[1643962874049,0.00105351,38020.0,38019.0,1.40281083]
[1643962874252,0.00105351,38020.0,38019.0,1.50281083]
[1643962874449,0.065739,38027.0,38024.0,0.25302063]
[1643962874650,0.002,38029.0,38026.0,0.05]
[1643962874850,0.002,38029.0,38028.0,0.05]
[1643962876070,0.002,38029.0,38023.0,0.05]
[1643962876874,0.002,38029.0,38027.0,0.05]
[1643962877071,0.002,38029.0,38023.0,0.05]
[1643962877472,0.25616913,38028.0,38023.0,0.05]
[1643962877874,0.05,38028.0,38023.0,0.05]
[1643962878273,0.002,38029.0,38026.0,0.05]
[1643962878673,0.067738,38029.0,38028.0,0.05]
[1643962878875,0.067738,38029.0,38026.0,0.04]
[1643962879321,0.06879173,38029.0,38028.0,0.04]
[1643962879527,0.41497273,38029.0,38028.0,0.04]
[1643962879724,0.42497273,38029.0,38028.0,0.04]
[1643962879921,0.42497273,38029.0,38023.0,0.04]
[1643962880120,0.01,38027.0,38023.0,0.04]
[1643962880321,0.01,38027.0,38026.0,0.04]
[1643962880521,0.00105377,38027.0,38026.0,0.04]
[1643962881121,0.00105377,38027.0,38025.0,0.04]
[1643962881522,0.077738,38029.0,38023.0,0.09]
[1643962881722,0.077738,38029.0,38028.0,0.04]
[1643962881924,0.413919,38029.0,38028.0,0.04]
[1643962882125,0.423919,38029.0,38024.0,0.065736]
[1643962882322,0.01,38028.0,38022.0,0.05]
[1643962882522,0.067738,38029.0,38027.0,0.04]
[1643962882724,0.396181,38028.0,38027.0,0.04]
[1643962882968,0.406181,38028.0,38027.0,0.04]
[1643962883167,0.396181,38028.0,38027.0,0.04]
[1643962884370,0.396181,38028.0,38024.0,0.04]
[1643962884571,0.396181,38028.0,38022.0,0.04]
[1643962884572,0.05,38028.0,38022.0,0.04]
[1643962884774,0.26709599,38029.0,38026.0,0.04]
[1643962884973,0.346181,38028.0,38026.0,0.04]
[1643962885173,0.01,38027.0,38022.0,0.04]
[1643962885375,0.01,38027.0,38021.0,0.50024484]
[1643962885376,0.11879167,38029.0,38026.0,0.04]
[1643962885575,0.11879167,38029.0,38028.0,0.04]
[1643962885773,0.11879167,38029.0,38023.0,0.04]
[1643962885973,0.12879167,38029.0,38023.0,0.04]
[1643962886172,0.11879167,38029.0,38023.0,0.04]
[1643962886374,0.067738,38029.0,38023.0,0.04]
[1643962886575,0.01,38028.0,38026.0,0.04]
[1643962886824,0.01105369,38028.0,38026.0,0.04]
[1643962887021,0.01105369,38028.0,38021.0,0.44764484]
[1643962887022,0.01105369,38028.0,38022.0,0.04]
[1643962887224,0.01105369,38028.0,38024.0,0.04]
[1643962887721,0.25547027,38026.0,38021.0,0.05]
[1643962887921,0.20126046,38022.0,38021.0,0.05]
[1643962888121,0.01,38024.0,38020.0,0.221469]
[1643962888522,0.05,38023.0,38022.0,0.04]
[1643962889222,0.00105374,38024.0,38022.0,0.04]
[1643962890026,0.065744,38025.0,38022.0,0.04]
[1643962890223,0.065744,38025.0,38024.0,0.04]
[1643962890224,0.00105373,38025.0,38024.0,0.04]
[1643962890469,0.00105373,38025.0,38024.0,0.0926]
[1643962891271,0.002,38029.0,38024.0,0.1426]
[1643962891674,0.01,38026.0,38024.0,0.0926]
[1643962891870,0.002,38029.0,38024.0,0.1426]
[1643962892070,0.067735,38029.0,38025.0,0.04]
[1643962892270,0.067735,38029.0,38026.0,0.04]
[1643962892470,0.01,38026.0,38024.0,0.05]
[1643962892870,0.01,38026.0,38022.0,0.04]
[1643962893269,0.17582599,38024.0,38022.0,0.04]
[1643962893669,0.05,38023.0,38022.0,0.04]
[1643962894322,0.06,38023.0,38019.0,0.04]
[1643962894521,0.05,38023.0,38019.0,0.04]
[1643962894722,0.01,38020.0,38019.0,0.04]
[1643962895121,0.01,38020.0,38017.0,0.13169383]
[1643962895326,0.01,38020.0,38016.0,0.00021083]
[1643962895327,0.01,38018.0,38016.0,0.00021083]
[1643962895524,0.01,38018.0,38011.0,0.7788]
[1643962895525,0.01,38018.0,38015.0,0.00021083]
[1643962895724,0.01,38016.0,38011.0,0.00021083]
[1643962896022,0.01,38014.0,38009.0,0.00021083]
[1643962896221,0.25119701,38014.0,38011.0,0.04]
[1643962896623,0.25119701,38014.0,38009.0,0.00021083]
[1643962896821,0.2767416,38013.0,38010.0,0.04]
[1643962897026,0.2867416,38013.0,38008.0,0.02189138]
[1643962897229,0.2767416,38013.0,38008.0,0.02189138]
[1643962897422,0.22678679,38012.0,38008.0,0.02189138]
[1643962897625,0.28779571,38013.0,38008.0,0.02189138]
[1643962897626,0.00105411,38013.0,38011.0,0.49]
[1643962897828,0.00105411,38013.0,38011.0,0.04]
[1643962898076,0.00105411,38013.0,38006.0,0.13151535]
[1643962898077,0.01,38012.0,38008.0,0.04021083]
[1643962898276,0.01,38012.0,38008.0,0.04]
[1643962898477,0.27288331,38015.0,38008.0,0.04021083]
[1643962898677,0.00105413,38012.0,38008.0,0.04021083]
[1643962898875,0.01105413,38012.0,38008.0,0.04021083]
[1643962899078,0.01,38009.0,38008.0,0.00021083]
[1643962899279,0.01,38009.0,38005.0,0.00021083]
[1643962899478,0.01,38008.0,38006.0,0.00021083]
[1643962899677,0.01,38008.0,38002.0,0.5572]
[1643962899678,0.01,38008.0,38007.0,0.04]
[1643962899879,0.17452802,38007.0,38003.0,0.00126517]
[1643962900077,0.24031002,38007.0,38006.0,0.04]
[1643962900277,0.461963,38007.0,38006.0,0.04]
[1643962901276,0.65168064,38007.0,38006.0,0.04]
[1643962901478,0.87965869,38007.0,38006.0,0.04]
[1643962901724,0.87854236,38007.0,38006.0,0.04]
[1643962901918,0.65168064,38007.0,38006.0,0.04]
[1643962902422,0.065782,38007.0,38006.0,0.04]
[1643962903422,0.06570226,38007.0,38006.0,0.04]
[1643962905972,0.06570226,38007.0,38004.0,0.04]
[1643962906172,0.29386595,38005.0,38004.0,0.04021083]
[1643962906372,0.34386595,38005.0,38004.0,0.04]
[1643962907372,0.05,38005.0,38004.0,0.04]
[1643962908271,0.065778,38006.0,38004.0,0.04]
[1643962909925,0.065778,38006.0,38005.0,0.04]
[1643962910125,0.065778,38006.0,38003.0,0.00126514]
[1643962910126,0.065778,38006.0,38003.0,0.04105431]
[1643962910327,0.065778,38006.0,38005.0,0.04]
[1643962911530,0.065778,38006.0,38004.0,0.00021083]
[1643962911531,0.29972116,38006.0,38004.0,0.00021083]
[1643962911728,0.23566385,38005.0,38001.0,0.04021083]
[1643962911929,0.23566385,38005.0,38003.0,0.00105432]
[1643962912130,0.28566385,38005.0,38003.0,0.00105432]
[1643962912330,0.1737715,38004.0,38003.0,0.00105432]
[1643962912532,0.05,38005.0,38003.0,0.00105432]
[1643962912735,0.065778,38006.0,38004.0,0.04]
[1643962913176,0.065778,38006.0,38005.0,0.04]
[1643962913577,0.065778,38006.0,38005.0,0.93406572]
[1643962913780,0.065778,38006.0,38005.0,1.08406572]
[1643962914577,0.181557,38007.0,38005.0,1.08406572]
[1643962915382,0.181557,38007.0,38005.0,1.04406572]
[1643962915678,0.181557,38007.0,38005.0,0.89406572]
[1643962915679,0.85829381,38006.0,38005.0,0.89406572]
[1643962915880,1.25707481,38006.0,38005.0,0.16280762]
[1643962916081,0.65707481,38006.0,38005.0,0.16280762]
[1643962916282,0.65207481,38006.0,38005.0,0.16280762]
[1643962916580,0.346181,38005.0,38004.0,0.00021083]
[1643962916822,0.346181,38005.0,38003.0,0.00126515]
[1643962916823,0.28094117,38004.0,38003.0,0.00126515]
[1643962917021,0.87987428,38004.0,38003.0,0.00126515]
[1643962917223,0.87987428,38004.0,38003.0,0.00105432]
[1643962917622,0.28094117,38004.0,37997.0,0.00021083]
[1643962917821,0.411976,38003.0,38002.0,0.00105433]
[1643962918023,0.421976,38003.0,38002.0,0.00105433]
[1643962918223,0.471976,38003.0,38002.0,0.00105433]
[1643962918424,0.55590338,38003.0,38002.0,0.00105433]
[1643962918625,0.33497967,38006.0,38005.0,0.060731]
[1643962918830,0.67617667,38006.0,38005.0,0.060731]
[1643962920326,0.72617667,38006.0,38005.0,0.060731]
[1643962920581,0.93741468,38000.0,37999.0,0.38977418]
[1643962920780,0.98741468,38000.0,37999.0,0.38977418]
[1643962920978,0.98741468,38000.0,37999.0,0.04357718]
[1643962921180,0.98741468,38000.0,37999.0,0.38977418]
[1643962921383,0.98741468,38000.0,37999.0,0.04357718]
[1643962921579,1.16991046,38000.0,37999.0,0.04357718]
[1643962922579,1.16991046,38000.0,37999.0,0.38977418]
[1643962922783,1.16991046,38000.0,37999.0,0.04357718]
[1643962923083,1.7863947,37999.0,37998.0,0.00075199]
[1643962923381,0.4889947,37999.0,37998.0,0.00054214]
[1643962923680,0.06581,37998.0,37993.0,0.00020985]
[1643962923884,0.65945698,37997.0,37992.0,0.00020985]
[1643962924082,0.70945698,37997.0,37991.0,0.01216892]
[1643962924520,0.70945698,37997.0,37991.0,0.01237877]
[1643962924825,0.19175866,37992.0,37991.0,0.01020985]
[1643962925021,0.19175866,37992.0,37991.0,0.01]
[1643962925220,0.24175866,37992.0,37991.0,0.01]
[1643962925420,0.58795566,37992.0,37991.0,0.01]
[1643962926820,0.24175866,37992.0,37991.0,0.01]
[1643962927019,0.05,37992.0,37991.0,0.01]
[1643962927221,0.115808,37994.0,37991.0,0.01]
[1643962927422,0.115808,37994.0,37991.0,0.01020985]
[1643962928073,0.16733221,37992.0,37991.0,0.01020985]
[1643962928274,0.16733221,37992.0,37991.0,0.01]
[1643962929476,0.065808,37994.0,37991.0,0.01]
[1643962929678,0.065808,37994.0,37993.0,0.05]
[1643962929877,0.412005,37994.0,37993.0,0.05]
[1643962930078,0.412005,37994.0,37992.0,0.00020985]
[1643962930278,0.065808,37994.0,37992.0,0.05]
[1643962930477,0.346197,37993.0,37992.0,0.05]
[1643962930776,0.346197,37993.0,37992.0,0.33874586]
[1643962930777,0.34479095,37993.0,37992.0,0.33874586]
[1643962931178,0.34479095,37993.0,37992.0,0.43874586]
[1643962931583,0.34479095,37993.0,37992.0,0.2]
[1643962932230,0.34479095,37993.0,37992.0,0.05]
[1643962932526,0.34479095,37993.0,37992.0,0.35570634]
[1643962932729,0.115808,37994.0,37992.0,0.40570634]
[1643962932927,0.115808,37994.0,37992.0,0.50570634]
[1643962933527,0.346218,37993.0,37992.0,0.50570634]
[1643962933727,0.115808,37994.0,37992.0,0.50570634]
[1643962933930,0.346218,37993.0,37992.0,0.50570634]
[1643962934628,0.346218,37993.0,37992.0,0.2]
[1643962934827,0.346218,37993.0,37992.0,0.05]
[1643962935674,0.346218,37993.0,37991.0,0.28978112]
[1643962935675,0.05,37992.0,37991.0,0.28978112]
[1643962935875,0.59784341,37990.0,37989.0,0.62078947]
[1643962936075,0.64699099,37990.0,37989.0,1.12057962]
[1643962936274,0.64699099,37990.0,37989.0,0.62057962]
[1643962936880,0.64699099,37990.0,37988.0,0.18181885]
[1643962937078,0.63985935,37990.0,37989.0,0.346218]
[1643962937278,0.83493074,37990.0,37989.0,0.346218]
[1643962937478,1.13716258,37990.0,37989.0,0.346218]
[1643962937877,0.90074374,37990.0,37989.0,0.346218]
[1643962938480,1.07952272,37990.0,37989.0,0.346218]
[1643962938678,0.70567235,37990.0,37989.0,0.346218]
[1643962939829,0.70567235,37990.0,37988.0,0.00126359]
[1643962940025,0.70567235,37990.0,37989.0,0.346218]
[1643962940226,0.70567235,37990.0,37988.0,0.00105374]
[1643962940426,0.70567235,37990.0,37989.0,0.346218]
[1643962942426,0.66308813,37990.0,37989.0,0.346218]
[1643962942827,0.66308813,37990.0,37989.0,0.336918]
[1643962943676,0.71308813,37990.0,37989.0,0.336918]
[1643962945079,0.66308813,37990.0,37989.0,0.386918]
[1643962945579,0.59727513,37990.0,37989.0,0.386918]
[1643962945779,0.64727513,37990.0,37989.0,0.386918]
[1643962946826,0.85830628,37990.0,37989.0,0.336918]
[1643962947025,0.85830628,37990.0,37988.0,0.00126359]
[1643962947228,0.85830628,37990.0,37988.0,0.00105374]
[1643962947624,0.85830628,37990.0,37984.0,0.00020985]
[1643962947824,0.05,37986.0,37985.0,0.338546]
[1643962948324,0.05,37988.0,37985.0,0.338546]
[1643962948527,0.05,37988.0,37986.0,0.1]
[1643962948926,0.065816,37989.0,37987.0,0.338531]
[1643962950680,0.05,37988.0,37987.0,0.338531]
[1643962950880,0.05,37988.0,37986.0,0.00126361]
[1643962951082,1.9792205,37988.0,37986.0,0.00105376]
[1643962951281,1.9792205,37988.0,37982.0,0.00020985]
[1643962951282,1.9428072,37987.0,37982.0,0.00020985]
[1643962951483,0.115838,37983.0,37981.0,0.01020985]
[1643962951681,0.5087891,37982.0,37981.0,0.01]
[1643962952080,0.7879009,37982.0,37981.0,0.01]
[1643962952781,0.89075814,37982.0,37981.0,0.01]
[1643962953179,0.89075814,37982.0,37981.0,0.01020899]
[1643962953379,1.16216774,37982.0,37981.0,0.01020899]
[1643962953581,1.16216774,37982.0,37981.0,0.00809517]
[1643962953782,1.0,37981.0,37980.0,0.00105386]
[1643962953981,1.396229,37981.0,37980.0,0.00105386]
[1643962954227,0.446229,37981.0,37980.0,0.00105386]
[1643962954423,0.70058956,37981.0,37980.0,0.00105386]
[1643962954722,0.75318956,37981.0,37980.0,0.00105386]
[1643962954922,0.065841,37980.0,37975.0,0.00020899]
[1643962955126,0.42874108,37976.0,37973.0,0.00421611]
[1643962955322,0.05,37974.0,37973.0,0.00421611]
[1643962956123,0.05,37974.0,37972.0,0.00020899]
[1643962956424,0.39886816,37976.0,37972.0,0.00020899]
[1643962956425,0.16584,37976.0,37972.0,0.00105397]
[1643962956623,0.05,37973.0,37972.0,0.00126296]
[1643962957127,0.06584,37976.0,37972.0,0.00126296]
[1643962957323,0.06584,37976.0,37972.0,0.00020899]
[1643962957524,0.06584,37976.0,37975.0,0.25342025]
[1643962958381,0.06584,37976.0,37975.0,0.30342025]
[1643962958578,0.06584,37976.0,37975.0,0.29842025]
[1643962958778,0.06584,37976.0,37975.0,0.29862924]
[1643962959782,0.06584,37976.0,37975.0,0.29232906]
[1643962962025,0.06584,37976.0,37974.0,0.05]
[1643962962228,0.06584,37976.0,37974.0,0.00105416]
[1643962962627,0.2450674,37976.0,37974.0,0.00105416]
[1643962962825,0.11584,37976.0,37974.0,0.00105416]
[1643962963029,0.06584,37976.0,37974.0,0.00105416]
[1643962963227,0.06584,37976.0,37973.0,0.30403343]
[1643962964227,0.11584,37976.0,37973.0,0.30403343]
[1643962964628,0.065823,37979.0,37974.0,0.184243]
[1643962964829,0.065823,37979.0,37974.0,0.234243]
[1643962965476,0.065823,37979.0,37976.0,0.065821]
[1643962965878,0.065823,37979.0,37976.0,0.115821]
[1643962966481,0.3775859,37988.0,37979.0,0.13163]
[1643962966681,0.05,37987.0,37981.0,0.36030846]
[1643962966880,0.21511327,37987.0,37982.0,0.0526]
[1643962967681,0.21511327,37987.0,37982.0,0.11841]
[1643962968183,0.28092327,37987.0,37982.0,0.18422]
[1643962968882,0.28092327,37987.0,37982.0,0.0526]
[1643962969083,0.05,37986.0,37982.0,0.0526]
[1643962969329,0.28092327,37987.0,37982.0,0.0526]
[1643962969531,0.05,37983.0,37982.0,0.0526]
[1643962969730,0.1,37983.0,37982.0,0.0526]
[1643962969929,0.05,37983.0,37982.0,0.0526]
[1643962970129,0.045,37983.0,37982.0,0.0526]
[1643962970329,0.06582,37984.0,37982.0,0.1026]
[1643962970528,0.06567748,37984.0,37982.0,0.1026]
[1643962970930,0.06567748,37984.0,37982.0,0.0526]
[1643962971530,0.065811,37987.0,37982.0,0.0526]
[1643962971730,0.26746038,37996.0,37982.0,0.0526]
[1643962971731,0.05,37992.0,37983.0,0.19742311]
[1643962971930,0.00105333,37990.0,37984.0,0.0526]
[1643962972329,0.00105333,37990.0,37984.0,0.1026]
[1643962972529,0.065806,37989.0,37988.0,0.291841]
[1643962974375,0.065806,37989.0,37988.0,0.357647]
[1643962975376,0.065806,37989.0,37988.0,0.065806]
[1643962978327,0.05105357,37990.0,37988.0,0.065806]
[1643962978532,0.05105357,37990.0,37988.0,0.13160921]
[1643962978727,0.00105357,37990.0,37988.0,0.18160921]
[1643962978929,0.1,37994.0,37988.0,0.18160921]
[1643962979129,0.00105356,37991.0,37990.0,0.131612]
[1643962979329,0.2270172,37991.0,37990.0,0.115806]
[1643962979729,0.3270172,37991.0,37990.0,0.065806]
[1643962980030,0.27596364,37991.0,37990.0,0.065806]
[1643962980329,0.05105354,37992.0,37990.0,0.065806]
[1643962981183,0.30214731,37992.0,37990.0,0.065806]
[1643962981578,0.35214731,37992.0,37990.0,0.065806]
[1643962981778,0.41795331,37992.0,37990.0,0.065806]
[1643962982578,0.36795331,37992.0,37990.0,0.065806]
[1643962984231,0.36795331,37992.0,37989.0,0.181612]
[1643962984232,0.05,37991.0,37989.0,0.18060739]
[1643962984427,0.05,37991.0,37986.0,0.131611]
[1643962984627,0.36795331,37992.0,37986.0,0.131611]
[1643962984828,0.05,37987.0,37986.0,0.131611]
[1643962985027,0.065812,37989.0,37986.0,0.131611]
[1643962985227,0.05,37987.0,37986.0,0.131611]
[1643962985428,0.13141196,37987.0,37986.0,0.131611]
[1643962986228,0.13141196,37987.0,37984.0,0.13182856]
[1643962986430,0.147166,37986.0,37984.0,0.13182856]
[1643962986827,0.115818,37987.0,37984.0,0.13182856]
[1643962987027,0.13267854,37990.0,37985.0,0.29619972]
[1643962987028,0.00105354,37990.0,37985.0,0.29619972]
[1643962987229,0.30214731,37992.0,37985.0,0.29619972]
[1643962987230,0.35214731,37992.0,37985.0,0.29619972]
[1643962987428,0.00105353,37990.0,37985.0,0.29619972]
[1643962988377,0.20894481,37991.0,37987.0,0.065807]
[1643962988578,0.28902669,37991.0,37987.0,0.065807]
[1643962988779,0.00105356,37990.0,37987.0,0.065807]
[1643962989679,0.19588588,37991.0,37987.0,0.065807]
[1643962989879,0.00105357,37990.0,37987.0,0.065807]
[1643962990884,0.53011627,37998.0,37987.0,0.065807]
[1643962990886,0.115799,37994.0,37988.0,0.131601]
[1643962991187,0.00105357,37990.0,37989.0,1.6617409]
[1643962991382,0.10026906,38001.0,37993.0,0.06577624]
[1643962991383,0.05,38001.0,37993.0,0.06577624]
[1643962991588,0.05,38001.0,37994.0,0.0526]
[1643962991843,0.01893885,38002.0,38001.0,0.29530665]
[1643962991844,0.06893885,38002.0,38001.0,0.29530665]
[1643962992041,0.05,38002.0,38001.0,0.29530665]
[1643962992243,0.07023389,38002.0,38001.0,0.36109165]
[1643962992439,0.07023389,38002.0,38001.0,0.46109165]
[1643962992640,0.07023389,38002.0,38001.0,0.51369165]
[1643962993740,0.12023389,38002.0,38001.0,0.51369165]
[1643962994148,0.1,38002.0,38001.0,0.51369165]
[1643962994345,0.05,38002.0,38001.0,0.51369165]
[1643962995341,0.05,38002.0,38001.0,0.218385]
[1643962995887,0.05,38002.0,38001.0,0.168385]
[1643962997988,0.14057375,38004.0,38001.0,0.234163]
[1643962997989,0.05,38003.0,38001.0,0.234163]
[1643962998388,0.05,38003.0,38001.0,0.131563]
[1643962998587,0.05,38003.0,38001.0,0.065785]
[1643962998789,0.05,38003.0,38000.0,0.131556]
[1643962998987,0.05,38001.0,38000.0,0.131556]
[1643963000629,0.05,38001.0,37999.0,0.131569]
[1643963001634,0.39470699,37998.0,37993.0,0.263174]
[1643963001835,0.39470699,37998.0,37989.0,0.06831329]
[1643963001836,0.05,37994.0,37989.0,0.01831329]
[1643963002130,0.26194719,37993.0,37989.0,0.01831329]
[1643963002331,0.12976918,37990.0,37989.0,0.01831329]
[1643963002632,0.17976918,37990.0,37989.0,0.0197217]
[1643963003682,0.4092341,37990.0,37989.0,0.0197217]
[1643963003881,0.37112049,37990.0,37989.0,0.0197217]
[1643963004082,0.37112049,37990.0,37985.0,0.131616]
[1643963004283,0.05,37986.0,37985.0,0.131616]
[1643963005086,0.32761272,37986.0,37984.0,0.00020756]
[1643963005284,0.32761272,37986.0,37983.0,0.77496433]
[1643963005285,0.24250935,37985.0,37983.0,0.77496433]
[1643963005486,0.55,37984.0,37983.0,0.77517189]
[1643963005684,0.396229,37984.0,37983.0,0.77496433]
[1643963005886,0.63304663,37984.0,37983.0,0.77496433]
[1643963006089,0.72506827,37984.0,37983.0,0.77496433]
[1643963006286,0.8889953,37984.0,37983.0,0.77496433]
[1643963006927,0.396229,37984.0,37983.0,0.77496433]
[1643963007526,0.396229,37984.0,37982.0,0.00020756]
[1643963007527,1.415832,37983.0,37982.0,0.00020758]
[1643963007825,1.415832,37983.0,37981.0,0.00020758]
[1643963007826,1.346229,37982.0,37981.0,0.00020758]
[1643963008024,0.398829,37982.0,37977.0,0.00020758]
[1643963008227,0.05,37978.0,37975.0,0.00020758]
[1643963008529,0.05,37976.0,37974.0,0.07136048]
[1643963008727,0.06583,37978.0,37974.0,0.12136048]
[1643963008927,0.06583,37978.0,37975.0,0.065826]
[1643963009326,0.05,37976.0,37975.0,0.065826]
[1643963009527,0.05,37976.0,37975.0,0.06688064]
[1643963010581,0.05,37976.0,37975.0,0.065826]
[1643963010982,0.05,37976.0,37974.0,0.19964165]
[1643963011681,0.05,37976.0,37974.0,0.0011]
[1643963011883,0.181672,37976.0,37974.0,0.0011]
[1643963012082,0.05,37975.0,37974.0,0.0011]
[1643963014736,0.05,37978.0,37972.0,0.20585296]
[1643963014941,0.05,37978.0,37972.0,0.35845296]
[1643963015236,0.24783142,37989.0,37973.0,0.065827]
[1643963015237,0.05,37982.0,37973.0,0.065827]
[1643963015436,0.1891936,37981.0,37974.0,0.0526]
[1643963015638,0.05,37982.0,37975.0,0.131643]
[1643963015837,0.05,37982.0,37976.0,0.0526]
[1643963016738,0.22370306,37982.0,37976.0,0.0526]
[1643963016940,0.05,37982.0,37976.0,0.0526]
[1643963017139,0.115822,37982.0,37976.0,0.0526]
[1643963017542,0.115822,37982.0,37976.0,0.118422]
[1643963018977,0.065822,37982.0,37976.0,0.118422]
[1643963019177,0.05,37981.0,37976.0,0.118422]
[1643963019778,0.20091662,37981.0,37976.0,0.118422]
[1643963020181,0.31402085,37977.0,37976.0,0.118422]
[1643963020378,0.36402085,37977.0,37976.0,0.118422]
[1643963020778,0.31402085,37977.0,37976.0,0.118422]
[1643963020979,0.36402085,37977.0,37976.0,0.118422]
[1643963021382,0.36402085,37977.0,37976.0,0.065822]
[1643963021583,0.05,37977.0,37976.0,0.065822]
[1643963022828,0.05,37977.0,37976.0,0.066028]
[1643963023025,0.065826,37980.0,37976.0,0.066028]
[1643963024826,0.115826,37980.0,37976.0,0.066028]
[1643963025225,0.065826,37980.0,37976.0,0.066028]
[1643963025477,0.115826,37980.0,37976.0,0.066028]
[1643963026675,0.065826,37980.0,37976.0,0.066028]
[1643963027277,0.05,37978.0,37976.0,0.066028]
[1643963028278,0.48801286,37981.0,37976.0,0.066028]
[1643963028782,0.05,37980.0,37976.0,0.066028]
[1643963029827,0.43801286,37981.0,37976.0,0.066028]
[1643963030028,0.05,37977.0,37976.0,0.066028]
[1643963031432,0.30449869,37977.0,37976.0,0.000206]
[1643963031631,0.30449869,37977.0,37975.0,0.000206]
[1643963031831,0.38127782,37976.0,37974.0,0.135085]
[1643963032030,0.05,37975.0,37974.0,0.135085]
[1643963032231,0.50029218,37975.0,37974.0,0.135085]
[1643963032433,0.49887344,37975.0,37974.0,0.135085]
[1643963032631,0.51445764,37975.0,37974.0,0.135085]
[1643963032832,0.27446551,37975.0,37974.0,0.135085]
[1643963033078,0.27446551,37975.0,37974.0,0.135291]
[1643963033478,0.05,37975.0,37974.0,0.135291]
[1643963034078,0.1,37975.0,37974.0,0.135291]
[1643963035479,0.1,37975.0,37974.0,0.128391]
[1643963036737,0.1,37975.0,37974.0,0.003648]
[1643963040133,0.05,37975.0,37974.0,0.003648]
[1643963040334,0.1,37975.0,37974.0,0.003648]
[1643963047979,0.1,37975.0,37974.0,0.002442]
[1643963048180,0.1,37975.0,37974.0,0.002648]
[1643963048379,0.1,37975.0,37974.0,0.002442]
[1643963049180,0.09983922,37975.0,37974.0,0.002442]
[1643963062730,0.05,37975.0,37974.0,0.002442]
[1643963070486,0.04989948,37975.0,37974.0,0.002442]
[1643963070785,0.04989948,37975.0,37974.0,0.134114]
[1643963071986,0.04989948,37975.0,37974.0,0.42223116]
[1643963072190,0.04989948,37975.0,37974.0,0.29055916]
[1643963072386,0.04989948,37975.0,37974.0,0.39055916]
[1643963073286,0.04989948,37975.0,37974.0,0.29055916]
[1643963073486,0.04989948,37975.0,37974.0,0.39055916]
[1643963074428,0.04989948,37975.0,37974.0,0.102442]
[1643963074627,0.04989948,37975.0,37974.0,0.002442]
[1643963079592,0.04989948,37975.0,37974.0,0.00235507]
[1643963081592,0.04989948,37975.0,37974.0,0.77916333]
[1643963084230,0.04989948,37975.0,37974.0,1.06234026]
[1643963084630,0.04989948,37975.0,37974.0,0.77916333]
[1643963084830,0.05,37979.0,37975.0,0.00276652]
[1643963085032,0.05,37979.0,37975.0,0.06860452]
[1643963085231,0.50136927,37980.0,37975.0,0.06860452]
[1643963085483,0.346229,37978.0,37975.0,0.06860452]
[1643963085681,0.50136927,37980.0,37975.0,0.06860452]
[1643963085880,0.346229,37978.0,37975.0,0.06860452]
[1643963086280,0.33683203,37980.0,37975.0,0.06860452]
[1643963086481,0.33683203,37980.0,37975.0,0.34084334]
[1643963086482,0.05,37980.0,37975.0,0.34084334]
[1643963086684,0.05,37982.0,37975.0,0.34084334]
[1643963086885,0.00098703,37983.0,37975.0,0.34084334]
[1643963087381,0.15475912,37982.0,37975.0,0.44084334]
[1643963087681,0.20475912,37982.0,37975.0,0.34084334]
[1643963087881,0.346229,37981.0,37975.0,0.34084334]
[1643963088084,0.27059612,37982.0,37975.0,0.44084334]
[1643963088281,0.346229,37981.0,37975.0,0.44084334]
[1643963088481,0.27059612,37982.0,37975.0,0.43584334]
[1643963088681,0.27059612,37982.0,37975.0,0.16360452]
[1643963088682,0.22181693,37981.0,37975.0,0.16360452]
[1643963088882,0.22181693,37981.0,37975.0,0.06360452]
[1643963089336,0.35350293,37981.0,37975.0,0.06360452]
[1643963089736,0.05,37980.0,37975.0,0.06360452]
[1643963089937,0.28780715,37979.0,37975.0,0.06360452]
[1643963090938,0.22196615,37979.0,37975.0,0.06360452]
[1643963091439,0.22196615,37979.0,37975.0,0.05860452]
[1643963092043,0.22171964,37978.0,37975.0,0.05860452]
[1643963092238,0.27171964,37978.0,37975.0,0.05860452]
[1643963093285,0.27529105,37978.0,37975.0,0.05860452]
[1643963094285,0.05,37978.0,37975.0,0.05860452]
[1643963094485,0.05,37980.0,37975.0,0.05860452]
[1643963094684,0.28683304,37981.0,37975.0,0.05860452]
[1643963095284,0.27302457,37980.0,37975.0,0.05860452]
[1643963095484,0.22777893,37979.0,37975.0,0.05860452]
[1643963095687,0.32302457,37980.0,37975.0,0.05860452]
[1643963099034,0.05,37980.0,37975.0,0.05860452]
[1643963099235,0.065839,37981.0,37975.0,0.05860452]
[1643963099436,0.2892594,37981.0,37975.0,0.05860452]
[1643963099636,0.065839,37981.0,37975.0,0.05860452]
[1643963101291,0.065839,37981.0,37978.0,0.30391037]
[1643963101492,0.346229,37980.0,37978.0,0.30391037]
[1643963101692,0.396229,37980.0,37978.0,0.30391037]
[1643963101893,0.065839,37981.0,37978.0,0.40391037]
[1643963102092,0.00098706,37983.0,37980.0,0.05]
[1643963102492,0.00098706,37983.0,37980.0,0.1]
[1643963102894,0.16722723,37986.0,37980.0,0.05]
[1643963103093,0.24414428,37988.0,37986.0,0.27124869]
[1643963103293,0.346229,37987.0,37983.0,0.23790722]